Cogmind - Beta 16 @@@ ROGUE MODE // 2025.11.10 @ 20:30:36 Player: ivnj Result: Destroyed by G-47 Trooper with Particle Gun Performance ------------- Evolutions (2) 1000 Regions Visited (5) 1000 Robots Destroyed (88) 440 Value Destroyed (2602) 2602 Prototype IDs (3) 60 Alien Tech Used (0) 0 Bonus (11) 11 TOTAL SCORE: 5113 Bonus ------- High Alert Combat Kills 11 Cogmind --------- Core Integrity 0/550 Matter 233/300 Energy 160/160 System Corruption 39% Temperature Cool (9) Movement Treading (145) Location -8/Storage Parts ------- > --- POWER (1) -------- Light Nuclear Core > --- PROPULSION (2) --- Advanced Treads Advanced Treads > --- UTILITY (6) ------ Heat Sink Improved Heat Sink Small Storage Unit Medium Storage Unit Improved Targeting Computer Hacking Suite > --- WEAPON (2) ------- Heavy Assault Rifle Improved Assault Rifle > --- INVENTORY (10) --- Light Nuclear Core Advanced Treads Advanced Treads Advanced Treads Advanced Weight Redist. System Grenade Launcher Peak State ------------ > --- POWER ------------ Deuterium Engine > --- PROPULSION ------- Improved Treads Armored Treads > --- UTILITY ---------- Medium Storage Unit Improved Terrain Scanner Improved Terrain Scan Processor Improved Targeting Computer Hardened Medium Armor Plating Hacking Suite > --- WEAPON ----------- Heavy Particle Cannon Flak Cannon > --- INVENTORY -------- Light Nuclear Core Light Treads Light Treads Light Treads Small Storage Unit Hardened Medium Armor Plating Hardened Medium Armor Plating EM Pulse Cannon Ion Cannon Grenade Launcher [Rating: 31] Favorites ----------- Power Ion Engine Engine Ion Engine Power Core Light Nuclear Core Propulsion Light Treads Treads Light Treads Leg Aluminum Leg Utility Small Storage Unit Device Improved Terrain Scanner Storage Small Storage Unit Processor Improved Targeting Computer Hackware Hacking Suite Protection Hardened Medium Armor Plating Weapon Small Laser Energy Gun Small Laser Energy Cannon Heavy Particle Cannon Ballistic Gun Assault Rifle Ballistic Cannon Flak Cannon Launcher Grenade Launcher Build | -11 -10 -10 -9 -8 -8 ------- Run | Yrd Mat Min Mat Mat Sto Slots Evolved 4 | . . . 2 2 . Power . | . . . . . . Propulsion . | . . . . . . Utility 4 | . . . 2 2 . Weapon . | . . . . . . Parts Attached 64 | 8 3 4 6 30 13 Power 10 | 1 . 2 . 5 2 Engine 8 | 1 . 2 . 5 . Core 2 | . . . . . 2 Reactor . | . . . . . . Propulsion 20 | 2 . 2 3 7 6 Treads 17 | 2 . . 2 7 6 Leg 3 | . . 2 1 . . Wheel . | . . . . . . Hover . | . . . . . . Flight . | . . . . . . Utility 15 | 2 1 . 1 9 2 Device 4 | 1 . . . 1 2 Storage 2 | 1 . . . 1 . Processor 3 | . . . 1 2 . Hackware 1 | . 1 . . . . Protection 5 | . . . . 5 . Artifact . | . . . . . . Weapon 19 | 3 2 . 2 9 3 Energy Gun 3 | 2 . . . 1 . Energy Cannon 8 | . . . 2 5 1 Ballistic Gun 6 | 1 2 . . 1 2 Ballistic Cannon 1 | . . . . 1 . Launcher 1 | . . . . 1 . Special Weapon . | . . . . . . Impact Weapon . | . . . . . . Slashing Weapon . | . . . . . . Piercing Weapon . | . . . . . . Special Melee Weapon . | . . . . . . Unidentified Prototypes 3 | . . . . 2 1 Corrupted Parts 4 | . . . . . 4 System Corruption 37 | . . . . . 37 Parts Lost 22 | . . 5 . 11 6 Power 3 | . . 1 . 1 1 Propulsion 8 | . . 2 . 5 1 Utility 4 | . . . . 2 2 Weapon 7 | . . 2 . 3 2 Highest Loss Streak 5 | . . 5 . 3 3 To Critical Strikes . | . . . . . . Average Backups 5 | 3 7 7 4 8 8 Power 1 | . 1 . . 1 1 Propulsion 2 | 1 2 1 1 2 2 Utility . | . 1 2 . 1 1 Weapon 1 | . 3 3 2 2 2 Tool/Special . | . . . . . . Unused Backups 9 | . 1 . . 2 6 Power . | . . . . . . Propulsion 6 | . . . . 1 5 Utility 1 | . 1 . . . . Weapon 2 | . . . . 1 1 Tool/Special . | . . . . . . Average Slot Usage (%) 97 | . 99 94 94 97 99 Engine 10 | . 14 14 11 8 7 Treads 20 | . 28 25 11 17 17 Leg 1 | . . . 10 . . Device 6 | . 1 . 10 7 16 Storage 11 | . 14 14 11 9 11 Processor 8 | . . . 11 14 9 Hackware 10 | . 12 14 11 9 9 Protection 6 | . . . . 12 8 Energy Cannon 7 | . . . 17 11 7 Ballistic Gun 10 | . 27 25 . . 9 Ballistic Cannon 2 | . . . . 5 . Peak Build Rating 31 | 9 12 12 18 31 28 Average Rating 15 | 8 11 11 16 26 25 On Entrance 11 | . 9 12 8 18 22 Avg Prop Armor Cover (%) 7 | . . . 7 . . Naked Turns . | . . . . . . Heaviest Build 53 | 14 17 16 19 53 40 Greatest Support 53 | 40 40 40 43 49 53 Greatest Overweight (x) 3 | . . 3 . 1 1 Average Overweight (x) . | . . . . . . Largest Inventory Capacity 10 | 8 8 8 8 10 10 Average Capacity 8 | 7 8 8 8 9 10 Most Carried 10 | 4 8 8 8 10 10 Average Carried 5 | 3 7 7 4 8 8 Final Capacity 10 | 8 8 8 8 10 10 Final Carried 8 | 4 8 5 8 5 6 Class Distribution -------------------- 78% | Mutant 16% | Scavenger-Mutant 4% | Scavenger-Skirmisher Dominant Class ---------------- Mutant | -10/Materials Mutant | -10/Mines Scavenger-Mutant | -9/Materials Mutant | -8/Materials Scavenger-Mutant | -8/Storage Resources | -11 -10 -10 -9 -8 -8 ----------- Run | Yrd Mat Min Mat Mat Sto Matter Collected 1884 | 301 315 51 95 808 314 Remotely . | . . . . . . Salvage Created 2963 | 109 541 51 432 1129 701 Parts 201 | 8 41 7 32 72 41 Haulers Intercepted 1 | . . . . . 1 Recyclers Shooed . | . . . . . . Parts Field Recycled . | . . . . . . Retrieved Matter . | . . . . . . Parts Self-Destructed . | . . . . . . Prevented . | . . . . . . Parts Restored . | . . . . . . Kills | -11 -10 -10 -9 -8 -8 ------- Run | Yrd Mat Min Mat Mat Sto Combat Hostiles Destroyed 73 | . 15 3 11 32 12 Melee 1 | . . . . 1 . Guns 25 | . 15 3 . . 7 Cannons 43 | . . . 11 27 5 AOE 4 | . . . . 4 . Classes Destroyed 13 | 2 3 . 1 6 1 Worker 2 | . . . . 2 . Builder 1 | . . . . 1 . Tunneler 2 | 2 . . . . . Hauler 1 | . . . . . 1 Recycler 2 | 1 . . 1 . . Watcher 7 | . 3 . 1 2 1 Swarmer 24 | . 6 3 4 11 . Grunt 29 | . 9 . 5 9 6 Brawler 2 | . . . . 1 1 Duelist 1 | . . . . 1 . Sentry 14 | . . . 2 7 5 Specialist 2 | . . . . 2 . Hunter 1 | . . . . 1 . Best Kill Streak 6 | 2 4 3 3 6 5 Combat Bots Only 6 | . 4 3 3 6 5 Max Kills in Single Turn 3 | 1 2 1 1 3 1 Gunslinging 1 | . 1 . . . . Exploded 3 | . . . . 3 . Melee 1 | . . . . 1 . Uniques/NPCs Destroyed . | . . . . . . Combat | -11 -10 -10 -9 -8 -8 -------- Run | Yrd Mat Min Mat Mat Sto Hostile Shots Fired 502 | . 46 24 35 276 121 Missed 127 | . 13 2 13 67 32 Hits 375 | . 33 22 22 209 89 Melee 7 | . . . . 7 . Projectile 368 | . 33 22 22 202 89 AOE 12 | . . 12 . . . Critical Strikes 17 | . . . 1 11 5 Damage Taken 5521 | . 348 557 261 2919 1436 Core 799 | . 53 86 93 365 202 Absorbed by Shields . | . . . . . . Regen/Repaired (Parts) 92 | . 35 . . 57 . Core Remaining (%) 73 | 100 . 44 76 . . Volleys Fired 207 | 7 35 6 22 83 54 Largest 2 | 2 2 2 2 2 2 Hottest 143 | 60 60 46 136 143 91 Shots Fired 382 | 14 70 12 44 147 95 Gun 156 | 14 70 12 . . 60 Cannon 223 | . . . 44 144 35 Launcher 3 | . . . . 3 . Special . | . . . . . . Kinetic 190 | 7 69 12 . 42 60 Thermal 189 | 7 1 . 44 102 35 Explosive 3 | . . . . 3 . Electromagnetic . | . . . . . . Robot Hit Streak 16 | 7 7 3 7 16 15 Robot Miss Streak 11 | 2 3 6 2 11 2 Penetration Max . | . . . . . . Secondary Targets 4 | . 3 1 . . . Max Gunslinging Chain 1 | . 1 1 . . . Shots Hit Robots 263 | 9 43 4 27 105 75 Core Hits 148 | 4 23 3 14 77 27 Critical Kills 2 | . 1 . . . 1 Critical Parts Destroyed 1 | . . 1 . . . Critical Strikes 3 | . 1 1 . . 1 Destroy 3 | . 1 1 . . 1 Melee Attacks . | . . . . . . Impact . | . . . . . . Slashing . | . . . . . . Piercing . | . . . . . . Sneak Attacks . | . . . . . . Combat Hostiles . | . . . . . . Follow-up Attacks . | . . . . . . Damage Inflicted 5424 | 104 666 75 557 2683 1339 Guns 1593 | 104 666 75 . . 748 Cannons 3595 | . . . 556 2452 587 Explosions 188 | . . . . 188 . Melee . | . . . . . . Ramming 48 | . . . 1 43 4 Kinetic 2051 | 49 666 75 . 513 748 Thermal 3137 | 55 . . 556 1939 587 Explosive 188 | . . . . 188 . Electromagnetic . | . . . . . . Impact . | . . . . . . Slashing . | . . . . . . Piercing . | . . . . . . Highest Corruption 39 | . . . . 2 39 Average Corruption 10 | . . . . 1 29 Corruption Purged . | . . . . . . Corruption Blocked . | . . . . . . Effects 43 | . . . . 11 32 Message Errors 5 | . . . . 2 3 Matter Fused 8 | . . . . 4 4 Heat Flow Errors 2 | . . . . 1 1 Energy Discharges 3 | . . . . . 3 Data Loss (minor) 6 | . . . . 1 5 Data Loss (major) 3 | . . . . 1 2 Misfires 2 | . . . . 1 1 Misdirections 2 | . . . . . 2 Weapon Failures 12 | . . . . 1 11 Overload Shots . | . . . . . . Overflow Damage 27 | . . . 1 26 . Projectiles 27 | . . . 1 26 . Explosions . | . . . . . . Melee . | . . . . . . Knockbacks 21 | . . . . 21 . Impact . | . . . . . . Kinetic 20 | . . . . 20 . Secondary 1 | . . . . 1 . Self-Inflicted Damage 3 | . . . . 3 . Shots 1 | . . . . 1 . Rammed 14 | . . . 1 12 1 Targets Rammed 15 | . . . 1 13 1 Kicked . | . . . . . . Crushed 1 | . . . . 1 . Highest Temperature 438 | . 64 12 252 438 105 Average Temperature 125 | . 17 5 81 156 30 Received Heat Transfer 2055 | . 138 . 117 1044 756 Effects 19 | . . . . 19 . Shutdowns 4 | . . . . 4 . Energy Bleed 4 | . . . . 4 . Interference 6 | . . . . 6 . Matter Decay 1 | . . . . 1 . Short Circuit 3 | . . . . 3 . Damage (minor) 1 | . . . . 1 . Siege Activations . | . . . . . . Martial Activations . | . . . . . . Shielding Activations . | . . . . . . Robots Disrupted . | . . . . . . Combat Hostiles . | . . . . . . Robots Corrupted . | . . . . . . Combat Hostiles . | . . . . . . Parts Fried . | . . . . . . Impact Corruptions . | . . . . . . Robots Melted . | . . . . . . Combat Hostiles . | . . . . . . Parts Melted 5 | . . . . 3 2 Heat Transferred 5157 | 125 . . 999 2997 1036 Parts Sabotaged . | . . . . . . Parts Stolen . | . . . . . . Parts Stripped . | . . . . . . Power Chain Reactions . | . . . . . . Alert | -11 -10 -10 -9 -8 -8 ------- Run | Yrd Mat Min Mat Mat Sto Maximum Alert Level 2 | . 1 . 1 2 1 Low Security (%) 76 | 100 92 100 98 17 45 Level 1 23 | . 7 . 1 80 54 Level 2 . | . . . . 1 . Level 3 . | . . . . . . Level 4 . | . . . . . . Level 5 . | . . . . . . High Security . | . . . . . . Max Security . | . . . . . . Peak Influence 414 | 5 228 116 202 414 325 Initial 144 | . . 46 5 78 144 Average 95 | . 97 81 63 259 209 Influence Increases 2246 | 15 425 70 358 967 411 Destroy 0b10 Robot/C 1460 | . 300 60 220 640 240 Destroy 0b10 Robot/NC 75 | 15 15 . 10 25 10 Destroy Leader 376 | . 76 10 62 154 74 Successful Hack 36 | . 16 . . 13 7 Disable Machine 60 | . . . 15 30 15 Destroy Structure 59 | . 3 . 6 45 5 Lose Combat Pursuer 180 | . 15 . 45 60 60 Influence Decreases 1957 | 15 306 173 188 809 466 Entered New Map 392 | . . 73 11 108 200 Time Decay 1345 | 15 306 50 177 591 206 Lost Part 220 | . . 50 . 110 60 Squads Dispatched 17 | . 3 . 3 9 2 Investigation 4 | . 1 . 1 2 . Extermination . | . . . . . . Reinforcement 10 | . 2 . 2 4 2 Assault . | . . . . . . Garrison 3 | . . . . 3 . Intercept . | . . . . . . Searches Triggered . | . . . . . . Construction Impeded 3 | . . . 1 1 1 Haulers Reinforced . | . . . . . . Active Scanning Responses . | . . . . . . Cargo Convoy Interrupts . | . . . . . . Stealth | -11 -10 -10 -9 -8 -8 --------- Run | Yrd Mat Min Mat Mat Sto Distress Signals 2 | . . . 1 . 1 Communications Jammed . | . . . . . . Distress Signals . | . . . . . . Times Spotted 110 | . 25 5 16 46 18 Peak Tracking Total 8 | . 4 2 5 5 8 Tactical Retreats 7 | . 1 . 2 2 2 Traps | -11 -10 -10 -9 -8 -8 ------- Run | Yrd Mat Min Mat Mat Sto Traps Triggered 3 | . . . . 2 1 Indirectly . | . . . . . . Trap Hack Attempts . | . . . . . . Triggered . | . . . . . . Disarmed . | . . . . . . Reprogrammed . | . . . . . . Reused . | . . . . . . Traps Extracted . | . . . . . . Installed . | . . . . . . Triggered . | . . . . . . Machines | -11 -10 -10 -9 -8 -8 ---------- Run | Yrd Mat Min Mat Mat Sto Machines Disabled 5 | . 1 . 1 2 1 Max in Single Turn 1 | . 1 . 1 1 1 Machines Repaired . | . . . . . . Machines Dismantled . | . . . . . . Machines Sabotaged . | . . . . . . Overloaded Fab Kills . | . . . . . . Hacking | -11 -10 -10 -9 -8 -8 --------- Run | Yrd Mat Min Mat Mat Sto Machines Accessed 15 | . 6 . 2 6 1 Terminals 10 | . 4 . 1 4 1 Fabricators . | . . . . . . Repair Stations 2 | . 1 . . 1 . Recycling Units 1 | . 1 . . . . Scanalyzers 2 | . . . 1 1 . Garrison Access . | . . . . . . Total Hacks 42 | . 13 . 5 22 2 Successful 29 | . 8 . 4 16 1 Failed 12 | . 5 . 1 5 1 Catastrophic 3 | . 1 . 1 1 . Database Lockouts 1 | . . . . 1 . Manual 1 | . 1 . . . . Terminals 22 | . 8 . 2 10 2 Fabricators . | . . . . . . Repair Stations 8 | . 3 . . 5 . Recycling Units 2 | . 2 . . . . Scanalyzers 10 | . . . 3 7 . Garrison Access . | . . . . . . Terminal Hacks 11 | . 4 . 1 5 1 Open Door 1 | . . . . . 1 Branch Access Points 2 | . 1 . 1 . . Emergency Access Points 1 | . . . . 1 . Repair Station Index 1 | . 1 . . . . Locate Traps 1 | . 1 . . . . Dispatch Records 1 | . 1 . . . . Recall Reinforcements 1 | . . . . 1 . Zone Layout 3 | . . . . 3 . Fabricator Hacks . | . . . . . . Repair Station Hacks 8 | . 3 . . 5 . Scan Component 5 | . 2 . . 3 . Repair 3 | . 1 . . 2 . Recycling Unit Hacks 1 | . 1 . . . . Process 1 | . 1 . . . . Scanalyzer 9 | . . . 3 6 . Insert Component 2 | . . . . 2 . Analyze 1 | . . . . 1 . Retrieve Study 6 | . . . 3 3 . Garrison Access Hacks . | . . . . . . Unauthorized Hacks . | . . . . . . Terminals . | . . . . . . Fabricators . | . . . . . . Repair Stations . | . . . . . . Recycling Units . | . . . . . . Scanalyzers . | . . . . . . Garrison Access . | . . . . . . Data Cores Recovered 1 | . 1 . . . . Used . | . . . . . . Hacking Detections 9 | . 2 . 1 5 1 Full Trace Events 5 | . 1 . 1 3 . Feedback Events . | . . . . . . Feedback Blocked . | . . . . . . Robot Schematics Acquired . | . . . . . . Robots Built . | . . . . . . Authchips . | . . . . . . Time . | . . . . . . Total Robot Build Rating . | . . . . . . Part Schematics Acquired 1 | . . . . 1 . Parts Built . | . . . . . . Authchips . | . . . . . . Time . | . . . . . . Total Part Build Rating . | . . . . . . Part Studies Acquired 6 | . . . 3 3 . Parts Repaired 3 | . 1 . . 2 . Time 90 | . 32 . . 58 . Parts Recycled . | . . . . . . Recycled Matter 20 | . 20 . . . . Retrieved Matter . | . . . . . . Retrieved Components . | . . . . . . Parts Scanalyzed 1 | . . . . 1 . Part Schematics Acquired 1 | . . . . 1 . Parts Damaged . | . . . . . . Bothacking | -11 -10 -10 -9 -8 -8 ------------ Run | Yrd Mat Min Mat Mat Sto Used RIF Installer . | . . . . . . Robots Hacked . | . . . . . . Non-combat . | . . . . . . Combat . | . . . . . . Robot Hacks Applied . | . . . . . . Relay Couplers Released . | . . . . . . Fabnet Peak Effective % . | . . . . . . Robots Rewired . | . . . . . . Allies Hacked . | . . . . . . Hacks Repelled . | . . . . . . Allies | -11 -10 -10 -9 -8 -8 -------- Run | Yrd Mat Min Mat Mat Sto Total Allies . | . . . . . . Largest Group . | . . . . . . Highest-Rated Group . | . . . . . . Highest-Rated Ally . | . . . . . . Total Orders . | . . . . . . Ally Attacks . | . . . . . . Total Damage . | . . . . . . Kills . | . . . . . . Allies Corrupted . | . . . . . . Allies Melted . | . . . . . . Intel | -11 -10 -10 -9 -8 -8 ------- Run | Yrd Mat Min Mat Mat Sto Active Infowar (turns) 5589 | 3553 84 . 521 1431 . Optics 908 | . . . 520 388 . Terrain 5534 | 3553 84 . 520 1377 . Robot Analysis Total . | . . . . . . Derelict Logs Recovered . | . . . . . . Drone Launches . | . . . . . . Drone Recoveries . | . . . . . . Exploration | -11 -10 -10 -9 -8 -8 ------------- Run | Yrd Mat Min Mat Mat Sto Turns Passed 7964 | 3626 1381 101 521 1903 432 Spaces Moved 2539 | 737 567 51 227 832 125 Core 4 | 3 . 1 . . . Treads 2505 | 734 567 44 203 832 125 Legs 30 | . . 6 24 . . Wheels . | . . . . . . Hover . | . . . . . . Flight . | . . . . . . Fastest Speed 50 | 50 160 120 120 160 145 Average Speed 162 | 159 160 156 155 169 153 Slowest Speed 240 | 160 160 200 160 240 225 Overloaded Moves . | . . . . . . Propulsion Burnouts . | . . . . . . Robots Hopped . | . . . . . . Potential Cave-ins 2 | . . 2 . . . Cave-ins Triggered . | . . . . . . Exploration Rate (%) 43 | 64 63 13 27 64 32 Regions Visited 5 Branch Regions 2 Pre-discovered Areas . | . . . . . . Known Exits Taken 1 | . 1 . . . . Unknown Exits Taken 4 | 1 . 1 1 1 . Scrap Searched . | . . . . . . Spaces Dug 6 | . . . . 6 . Terrain Destroyed 52 | . . . . 51 1 Melee . | . . . . . . Projectile 13 | . . . . 12 1 AOE 39 | . . . . 39 . Terrain Rammed . | . . . . . . Walls Destroyed . | . . . . . . Machines Disabled . | . . . . . . Actions | -11 -10 -10 -9 -8 -8 --------- Run | Yrd Mat Min Mat Mat Sto Total 5991 | 3169 988 63 349 1160 262 Wait 3042 | 2414 368 2 85 130 43 Move 2534 | 736 566 50 226 831 125 Hop . | . . . . . . Pick Up 43 | 4 8 . 6 16 9 Fast Attach 28 | 7 1 . 1 17 2 Attach 31 | . 3 3 4 15 6 Detach 15 | . 3 . 1 10 1 Swap 39 | 1 . 1 2 24 11 Drop 37 | . 4 1 1 21 10 Fire 207 | 7 35 6 22 83 54 Melee . | . . . . . . Ram . | . . . . . . Kick . | . . . . . . Crush 15 | . . . 1 13 1 Escape Stasis . | . . . . . . Rewire . | . . . . . . Trap . | . . . . . . Miscellaneous . | . . . . . . Route ------- -11/Scrapyard -10/Materials (discovered 4 exits: *Mat / *Min x2 / [*Sub]) -10/Mines -9/Materials (discovered 2 exits: *Mat / Min) -8/Materials (discovered 2 exits: [*Fac] / *Sto) -8/Storage History --------- Turn | Location | Event 4 | -11/Scrapyard | Discovered new exit (range 15) 3517 | -11/Scrapyard | Assembled infested the area 3627 | -11/Scrapyard | Entered Materials 3628 | -10/Materials | Build established: Mutant 3628 | -10/Materials | Met a group of wandering Federalists 3687 | -10/Materials | Discovered new exit (range 11) 3865 | -10/Materials | Discovered new exit (range 9) 4158 | -10/Materials | Discovered new exit (range 7) 4187 | -10/Materials | Identified exit to Mines 4492 | -10/Materials | Repaired Autogun 4584 | -10/Materials | Discovered new exit (range 7) 5008 | -10/Materials | Entered Mines 5019 | -10/Mines | Met a Derelict bent on vengeance 5044 | -10/Mines | Assembled infested the area 5049 | -10/Mines | Assisted by a Guerilla fighting off Assembled 5078 | -10/Mines | Discovered new exit (range 12) 5101 | -10/Mines | Core integrity fell below 50% 5109 | -10/Mines | Entered Materials 5109 | -9/Materials | Evolved 2 slots: Utility x2 5131 | -9/Materials | Lost 5 parts (1p2n2w) 5420 | -9/Materials | Identified exit to Mines 5470 | -9/Materials | Discovered new exit (range 17) 5625 | -9/Materials | Build established: Scavenger-Mutant 5630 | -9/Materials | Entered another Materials area 5630 | -8/Materials | Evolved 2 slots: Utility x2 5661 | -8/Materials | Repaired Particle Cannon+ 5687 | -8/Materials | Repaired Sml. Storage Unit 5957 | -8/Materials | Discovered new exit (range 18) 5999 | -8/Materials | Build established: Scavenger-Skirmisher 6035 | -8/Materials | Discovered new exit (range 4) 6465 | -8/Materials | Central database locked down 6686 | -8/Materials | Build established: Mutant 7064 | -8/Materials | Garrison activated, responded to threat 7108 | -8/Materials | Lost 3 parts (1n1u1w) 7135 | -8/Materials | Core integrity fell below 50% 7404 | -8/Materials | Lost 3 parts (1n2w) 7486 | -8/Materials | Lost 3 parts (2n1u) 7533 | -8/Materials | Entered Storage 7635 | -8/Storage | System corruption reached 10% 7654 | -8/Storage | System corruption reached 30% 7784 | -8/Storage | Build established: Scavenger-Mutant 7934 | -8/Storage | Core integrity fell below 20% 7965 | -8/Storage | Destroyed by G-47 Trooper with Particle Gun Last Messages --------------- 07895_ System corrupted: Matter fused (-6). 07897_ G-47 Trooper destroyed. 07899_ U-05 Engineer builds a Door. 07903_ Acquired 46 matter. 07907_ Acquired 3 matter. 07909_ Imp. Assault Rifle destroyed. 07913_ System corrupted: Matter fused (-6). 07913_ Acquired 5 matter. 07922_ G-47 Trooper destroyed. 07925_ Critical hit (Burn: +37). 07930_ 5EEQIGI < QYEWY%D